bitfinex/quotes_BTCUSD_20241202
["timestamp","ask_amount","ask_price","bid_price","bid_amount"]
[1733165099611,0.45916615,95872.0,95871.0,0.19409972]
[1733165099836,0.45916615,95872.0,95871.0,0.00366027]
[1733165100299,0.45916615,95872.0,95871.0,0.00466027]
[1733165100555,0.58456615,95872.0,95871.0,0.00466027]
[1733165100797,0.68741136,95872.0,95871.0,0.00366027]
[1733165101037,0.68741136,95872.0,95871.0,0.002]
[1733165101791,0.26500554,95872.0,95871.0,0.002]
[1733165102228,0.26500554,95872.0,95871.0,0.00467354]
[1733165102451,0.45916615,95872.0,95871.0,0.002]
[1733165102681,0.26500554,95872.0,95871.0,0.002]
[1733165102901,0.45916615,95872.0,95871.0,0.00467075]
[1733165106400,0.73332798,95872.0,95871.0,0.00467075]
[1733165106869,0.73664786,95872.0,95871.0,0.002]
[1733165107854,0.53956615,95872.0,95871.0,0.001]
[1733165108091,0.53956615,95872.0,95871.0,0.00265908]
[1733165108323,0.54056615,95872.0,95871.0,0.00265908]
[1733165108550,0.53956615,95872.0,95871.0,0.00265908]
[1733165109021,0.54656615,95872.0,95871.0,0.00265908]
[1733165109252,0.34416061,95871.0,95870.0,0.208614]
[1733165109712,0.11500554,95868.0,95867.0,0.208621]
[1733165109938,0.26500554,95860.0,95859.0,0.2103678]
[1733165111127,0.15,95860.0,95859.0,0.2103678]
[1733165111368,0.15,95860.0,95859.0,0.2143678]
[1733165111612,0.19691661,95860.0,95859.0,0.2213678]
[1733165111845,0.19591661,95860.0,95859.0,0.2103678]
[1733165112098,0.15,95860.0,95859.0,0.2103678]
[1733165112322,0.15,95860.0,95859.0,0.2133678]
[1733165112803,0.15,95860.0,95859.0,0.2153678]
[1733165113062,0.0008651,95872.0,95866.0,0.208624]
[1733165113308,0.0008651,95872.0,95871.0,0.231613]
[1733165113552,1e-07,95872.0,95871.0,0.47454794]
[1733165113792,0.11500554,95899.0,95884.0,0.208585]
[1733165114021,0.19416061,95896.0,95884.0,0.31143021]
[1733165114256,0.19416061,95896.0,95884.0,0.31409517]
[1733165114483,0.11500554,95892.0,95884.0,0.21124996]
[1733165114785,0.11500554,95890.0,95884.0,0.21124996]
[1733165115013,0.11500554,95890.0,95884.0,0.21524996]
[1733165115673,0.0018649,95885.0,95884.0,0.22324996]
[1733165117631,0.46103105,95885.0,95884.0,0.01466496]
[1733165118350,0.56387626,95885.0,95884.0,0.01466496]
[1733165118621,0.58117604,95885.0,95884.0,0.012]
[1733165118858,0.58117604,95885.0,95884.0,0.008]
[1733165119088,0.26500554,95872.0,95871.0,0.208612]
[1733165119320,0.26500554,95864.0,95863.0,0.20863]
[1733165120754,0.11500554,95864.0,95863.0,0.20863]
[1733165120997,0.11500554,95864.0,95863.0,0.21063]
[1733165121561,0.11500554,95864.0,95863.0,0.21363]
[1733165122230,0.15,95875.0,95864.0,0.208628]
[1733165122462,0.15,95875.0,95874.0,0.208607]
[1733165122910,0.11587044,95885.0,95874.0,0.208607]
[1733165122911,0.0008649,95885.0,95884.0,0.208585]
[1733165123369,0.0008647,95900.0,95884.0,0.31143021]
[1733165123598,0.0008647,95900.0,95899.0,0.208552]
[1733165123865,0.0008647,95900.0,95899.0,0.33439721]
[1733165124081,0.00100472,95900.0,95899.0,0.33439721]
[1733165124744,0.00100472,95900.0,95899.0,0.208552]
[1733165125030,0.00100472,95900.0,95899.0,0.214552]
[1733165125242,0.00100472,95900.0,95899.0,0.2777191]
[1733165125453,0.00100472,95900.0,95899.0,0.2717191]
[1733165125665,0.00200472,95900.0,95899.0,0.2887191]
[1733165126775,0.00100472,95900.0,95899.0,0.2797191]
[1733165127031,0.00100472,95900.0,95899.0,0.48255877]
[1733165127245,0.00200472,95900.0,95899.0,0.49455877]
[1733165127481,0.00100472,95900.0,95899.0,0.48555877]
[1733165127982,0.00200472,95900.0,95899.0,0.48955877]
[1733165128225,0.00100472,95900.0,95899.0,0.214552]
[1733165128468,0.00200472,95900.0,95899.0,0.22612723]
[1733165129616,0.11701026,95900.0,95899.0,0.22612723]
[1733165129864,0.00200472,95900.0,95899.0,0.22612723]
[1733165132731,0.00200472,95900.0,95899.0,0.35197244]
[1733165133188,0.00200472,95900.0,95899.0,0.42717244]
[1733165138738,0.00200472,95900.0,95899.0,0.22612723]
[1733165141769,0.00200472,95900.0,95899.0,0.35197244]
[1733165144482,0.00200472,95900.0,95899.0,0.32562126]
[1733165144705,0.00200472,95900.0,95899.0,0.40897907]
[1733165144943,0.00200472,95900.0,95899.0,0.40876507]
[1733165148049,0.00200472,95900.0,95899.0,0.40626107]
[1733165149297,0.00200472,95900.0,95899.0,0.19705805]
[1733165150950,0.00200472,95900.0,95899.0,0.32290326]
[1733165153053,0.00200472,95900.0,95899.0,0.32874265]
[1733165153054,7.2e-07,95900.0,95899.0,0.32874265]
[1733165153303,7.2e-07,95900.0,95899.0,0.41373711]
[1733165153548,0.0008649,95912.0,95911.0,0.231526]
[1733165153783,9e-07,95912.0,95911.0,0.48534071]
[1733165154024,0.19416061,95944.0,95938.0,0.208467]
[1733165154501,0.19416061,95944.0,95938.0,0.21098236]
[1733165154970,0.11587024,95939.0,95938.0,0.21098236]
[1733165155460,0.26603467,95939.0,95938.0,0.21098236]
[1733165155985,0.26603467,95939.0,95938.0,0.00251536]
[1733165156446,0.11500554,95934.0,95933.0,0.208476]
[1733165156679,0.15,95927.0,95912.0,0.023]
[1733165156921,0.11500554,95918.0,95892.0,0.0761]
[1733165157187,0.11500554,95918.0,95880.0,0.0488]
[1733165157188,0.11500554,95915.0,95893.0,0.13452133]
[1733165157417,0.15,95917.0,95894.0,0.208563]
[1733165157418,0.19416061,95900.0,95894.0,0.208563]
[1733165157667,0.15,95899.0,95895.0,0.19794807]
[1733165157904,0.15,95899.0,95895.0,0.40650907]
[1733165158384,0.15,95899.0,95895.0,0.19794807]
[1733165158622,0.15,95899.0,95897.0,0.208557]
[1733165158848,0.15,95899.0,95897.0,0.2087142]
[1733165159079,0.11731257,95898.0,95897.0,0.0001572]
[1733165160438,0.11500554,95898.0,95897.0,0.0001572]
[1733165160904,0.11500554,95898.0,95897.0,0.0061572]
[1733165161375,0.11500554,95898.0,95897.0,0.0041572]
[1733165161848,0.11500554,95898.0,95897.0,0.0071572]
[1733165162106,0.11500554,95898.0,95897.0,0.0088868]
[1733165162371,0.54249762,95898.0,95897.0,0.0088868]
[1733165162602,0.45916615,95898.0,95897.0,0.0088868]
[1733165163539,0.45916615,95898.0,95897.0,0.0048868]
[1733165163831,0.45916615,95898.0,95897.0,0.0018868]
[1733165164069,0.46116615,95898.0,95897.0,0.0018868]
[1733165165487,0.46116615,95898.0,95897.0,0.0059054]
[1733165165715,0.46116615,95898.0,95897.0,0.0018868]
[1733165166185,0.46116615,95898.0,95897.0,0.0059054]
[1733165166458,0.46116615,95898.0,95897.0,0.0018868]
[1733165166666,0.46116615,95898.0,95897.0,0.0059054]
[1733165166888,0.66617702,95898.0,95897.0,0.0018868]
[1733165167124,0.66774415,95887.0,95886.0,0.0008649]
[1733165167342,0.85208986,95887.0,95886.0,0.00100492]
[1733165167616,0.90058986,95887.0,95886.0,0.00100492]
[1733165167850,1.30058986,95887.0,95886.0,0.00100492]
[1733165168077,1.37925783,95887.0,95886.0,0.00100492]
[1733165168310,0.30916615,95873.0,95859.0,0.0017298]
[1733165168530,0.77062036,95873.0,95859.0,0.0017298]
[1733165168746,0.77391579,95873.0,95859.0,0.0017298]
[1733165169233,0.90211579,95873.0,95859.0,0.0017298]
[1733165169478,1.00428145,95873.0,95859.0,0.0017298]
[1733165169697,1.40428145,95873.0,95859.0,0.0017298]
[1733165169924,0.66780315,95860.0,95859.0,0.0017298]
[1733165170224,0.77064836,95860.0,95859.0,0.0017298]
[1733165170466,1.30334836,95860.0,95859.0,0.0017298]
[1733165170708,0.85916615,95859.0,95831.0,0.0008641]
[1733165170931,0.44700582,95859.0,95831.0,0.0008641]
[1733165171160,0.44700582,95859.0,95849.0,0.208659]
[1733165171161,0.45029419,95859.0,95849.0,0.208659]
[1733165171411,0.45916615,95859.0,95858.0,0.2103704]
[1733165171660,0.15,95859.0,95858.0,0.2103704]
[1733165171923,0.005,95860.0,95858.0,0.21424512]
[1733165172433,0.19416061,95864.0,95858.0,0.21424512]
[1733165172434,0.30916615,95864.0,95858.0,0.21424512]
[1733165172733,0.32908221,95859.0,95858.0,0.00560412]
[1733165173141,0.47908221,95859.0,95858.0,0.00560201]
[1733165173372,0.159,95859.0,95858.0,0.2113704]
[1733165173608,0.159,95859.0,95858.0,0.21524301]
[1733165173609,0.46816615,95859.0,95858.0,0.21524301]
[1733165173841,0.46316615,95859.0,95858.0,0.21424301]
[1733165174084,0.46916615,95859.0,95858.0,0.21524301]
[1733165174306,0.35416061,95859.0,95858.0,0.21524301]
[1733165174528,0.006,95859.0,95858.0,0.21524301]
[1733165175014,0.01723726,95882.0,95858.0,0.00560201]
[1733165175276,0.11500554,95881.0,95872.0,0.20861]
[1733165175495,0.019545,95882.0,95859.0,0.12584521]
[1733165175496,0.01723726,95882.0,95879.0,0.208595]
[1733165175720,0.0807,95897.0,95886.0,0.208581]
[1733165175721,0.19416061,95896.0,95886.0,0.208581]
[1733165175980,0.30916615,95892.0,95886.0,0.208581]
[1733165176206,0.19433568,95887.0,95886.0,0.208581]
[1733165176433,0.19433568,95887.0,95886.0,0.21245361]
[1733165177106,0.19433568,95887.0,95886.0,0.21225873]
[1733165177564,0.34433568,95887.0,95886.0,0.21225873]
[1733165178264,0.47527534,95887.0,95886.0,0.00587261]
[1733165178487,0.42934122,95887.0,95886.0,0.00687261]
[1733165178707,0.42934122,95887.0,95886.0,0.00487261]
[1733165178933,0.42934122,95887.0,95886.0,0.001]
[1733165179211,0.65848643,95887.0,95886.0,0.002]
[1733165179692,0.65848643,95887.0,95858.0,0.0017294]
[1733165179693,0.30916615,95859.0,95858.0,0.0017294]
[1733165180432,0.45916615,95859.0,95858.0,0.00551107]
[1733165180659,0.45916615,95859.0,95858.0,0.0017294]
[1733165180908,0.34416061,95859.0,95858.0,0.0055125]
[1733165181172,0.34416061,95859.0,95858.0,0.0017294]
[1733165181398,0.34416061,95859.0,95858.0,0.00554804]
[1733165181617,0.34516061,95859.0,95858.0,0.00554804]
[1733165182094,0.34416061,95859.0,95858.0,0.00554804]
[1733165182315,0.34332431,95859.0,95858.0,0.00554804]
[1733165182551,0.38924093,95859.0,95858.0,0.00754804]
[1733165182804,0.34332431,95859.0,95858.0,0.00754804]
[1733165183509,0.19416061,95859.0,95858.0,0.00754804]
[1733165183753,0.30916615,95871.0,95870.0,0.208615]
[1733165183971,0.19416061,95864.0,95858.0,0.00954804]
[1733165184193,0.19416061,95864.0,95858.0,0.0057294]
[1733165184418,0.19416061,95864.0,95862.0,0.208632]
[1733165184854,0.19416061,95864.0,95863.0,0.00379628]
[1733165185072,0.19416061,95865.0,95864.0,0.208628]
[1733165185524,0.19416061,95865.0,95864.0,0.21242428]
[1733165187179,0.19516061,95865.0,95864.0,0.21842428]
[1733165187398,0.19516061,95865.0,95864.0,0.22242428]
[1733165188069,0.19516061,95865.0,95864.0,0.21842428]
[1733165188557,0.11500554,95879.0,95877.0,0.2086]
[1733165188779,0.0017298,95886.0,95865.0,0.231626]
[1733165189014,0.19416061,95883.0,95882.0,0.208589]
[1733165189239,0.19589041,95886.0,95885.0,0.208583]
[1733165189471,0.0017298,95886.0,95885.0,0.208583]
[1733165189943,0.0017298,95886.0,95885.0,0.33820287]
[1733165190173,0.0017298,95886.0,95885.0,0.42319733]
[1733165190950,0.0027298,95886.0,95885.0,0.43319733]
[1733165191173,0.0017298,95886.0,95885.0,0.42719733]
[1733165191418,0.0017298,95886.0,95885.0,0.33820287]
[1733165191644,0.0017298,95886.0,95885.0,0.34720287]
[1733165191645,0.0027298,95886.0,95885.0,0.34720287]
[1733165191866,0.0037298,95886.0,95885.0,0.35320287]
[1733165192345,0.0037298,95886.0,95885.0,0.33554127]
[1733165192594,0.0037298,95886.0,95885.0,0.42165064]
[1733165192824,0.0037298,95886.0,95885.0,0.23269606]
[1733165193046,0.0037298,95886.0,95885.0,0.33554127]
[1733165199037,0.0037298,95886.0,95885.0,0.33640617]
[1733165199507,0.0037298,95886.0,95885.0,0.33564917]
[1733165199750,0.0037298,95886.0,95885.0,0.41093269]
[1733165201199,0.0037298,95886.0,95885.0,0.33564917]
[1733165205347,0.0037298,95886.0,95885.0,0.20980396]
[1733165205810,0.79867695,95886.0,95885.0,0.01963956]
[1733165206036,0.90152216,95886.0,95885.0,0.0158649]
[1733165206506,0.90052216,95886.0,95885.0,0.0068649]
[1733165206721,1.00335362,95886.0,95885.0,0.0108649]
[1733165207179,1.00664847,95886.0,95885.0,0.0068649]
[1733165207415,1.00964847,95886.0,95885.0,0.0008649]
[1733165207640,1.00964847,95886.0,95885.0,0.0028649]
[1733165208325,1.00964847,95886.0,95885.0,0.0008649]
[1733165208525,1.01164847,95886.0,95885.0,0.0008649]
[1733165210882,1.00835362,95886.0,95885.0,0.0008649]
[1733165211108,1.01164798,95886.0,95885.0,0.0008649]
[1733165211631,1.41164798,95886.0,95885.0,0.0008649]
[1733165212752,0.30916615,95859.0,95858.0,0.0017294]
[1733165212978,0.44114567,95859.0,95858.0,0.0017294]
[1733165213204,0.59114567,95859.0,95858.0,0.0017294]
[1733165213973,0.59114567,95859.0,95858.0,0.0107294]
[1733165213974,0.59214567,95859.0,95858.0,0.0107294]
[1733165214174,0.59114567,95859.0,95858.0,0.0017294]
[1733165214408,0.53936615,95859.0,95858.0,0.0017294]
[1733165214658,0.54236615,95859.0,95858.0,0.01029008]
[1733165214887,0.53936615,95859.0,95858.0,0.0067294]
[1733165215134,0.54236615,95859.0,95858.0,0.0017294]
[1733165215385,0.54336615,95859.0,95858.0,0.0017294]
[1733165215854,0.59770277,95859.0,95858.0,0.0017294]
[1733165216075,0.59770277,95859.0,95858.0,0.00544041]
[1733165216292,0.59770277,95859.0,95858.0,0.0017294]
[1733165217421,0.71804988,95859.0,95858.0,0.0017294]
[1733165217912,0.70604988,95859.0,95858.0,0.0017294]
[1733165218133,0.70934004,95859.0,95858.0,0.0017294]
[1733165218360,0.70604988,95859.0,95858.0,0.0017294]
[1733165219743,0.70604988,95859.0,95858.0,0.6017294]
[1733165219976,0.65171326,95859.0,95858.0,0.6017294]
[1733165220209,0.65171326,95859.0,95858.0,0.60544041]
[1733165225281,0.65171326,95859.0,95858.0,0.59398266]
[1733165225509,0.85171326,95859.0,95858.0,0.59398266]
[1733165225716,0.92971543,95859.0,95858.0,0.59398266]
[1733165226399,0.93300025,95859.0,95858.0,0.58462623]
[1733165226600,0.93300015,95859.0,95858.0,0.57654201]
[1733165227069,0.92971543,95859.0,95858.0,0.57654201]
[1733165227979,0.93300025,95859.0,95858.0,0.57654201]
[1733165228228,1.13300025,95859.0,95858.0,0.54214202]
[1733165228460,1.18250025,95859.0,95858.0,0.54214202]
[1733165229643,1.17950025,95859.0,95858.0,0.54214202]
[1733165229852,1.18850025,95859.0,95858.0,0.54314202]
[1733165230320,1.18421543,95859.0,95858.0,0.54314202]
[1733165230537,0.86749616,95859.0,95858.0,0.54214202]
[1733165230756,0.70449953,95859.0,95858.0,0.54214202]
[1733165230985,0.90949953,95859.0,95858.0,0.54314202]
[1733165231450,0.71349953,95859.0,95858.0,0.54314202]
[1733165231921,0.91349953,95859.0,95858.0,0.54314202]
[1733165232148,1.01633099,95859.0,95858.0,0.53943101]
[1733165232591,1.01633099,95859.0,95858.0,0.54335341]
[1733165233045,0.81633099,95859.0,95858.0,0.54335341]
[1733165233683,0.81633731,95859.0,95858.0,0.54335341]
[1733165233932,1.01633731,95859.0,95858.0,0.54335341]
[1733165234410,1.21633731,95859.0,95858.0,0.54335341]
[1733165234674,1.21633731,95859.0,95858.0,0.33528865]
[1733165234887,1.21633731,95859.0,95858.0,0.10532179]
[1733165235146,1.23275361,95859.0,95858.0,0.10532179]
[1733165235385,1.21633731,95859.0,95858.0,0.10139939]
[1733165235885,1.10450585,95859.0,95858.0,0.10039939]
[1733165236127,1.11350585,95859.0,95858.0,0.10139939]
[1733165236366,1.10050585,95859.0,95858.0,0.10039939]
[1733165236582,1.08800395,95859.0,95858.0,0.10126429]
[1733165236804,1.09873375,95859.0,95858.0,0.10226429]
[1733165237047,1.09373375,95859.0,95858.0,0.10226429]
[1733165237267,0.99656521,95859.0,95858.0,0.10226429]
[1733165237490,1.20356521,95859.0,95858.0,0.10326429]
[1733165237925,1.10073375,95859.0,95858.0,0.10326429]
[1733165239305,0.70073375,95859.0,95858.0,0.10326429]
[1733165239545,0.46907314,95859.0,95858.0,0.10326429]
[1733165239753,0.38887314,95859.0,95858.0,0.10326429]
[1733165239994,0.13602793,95859.0,95858.0,0.10326429]
[1733165240209,0.02102239,95859.0,95858.0,0.10326429]
[1733165240468,0.00502239,95859.0,95858.0,0.1516497]
[1733165240731,0.0087298,95859.0,95858.0,0.27849491]
[1733165240971,0.0087298,95859.0,95858.0,0.44941884]
[1733165240972,0.0167298,95859.0,95858.0,0.44941884]
[1733165241184,0.0167298,95859.0,95858.0,0.53111884]
[1733165241403,0.0097298,95859.0,95858.0,0.52663343]
[1733165241620,0.0097298,95859.0,95858.0,0.52963343]
[1733165242302,0.0097298,95859.0,95858.0,0.3587095]
[1733165242510,0.0017298,95859.0,95858.0,0.3587095]
[1733165242983,0.0027298,95859.0,95858.0,0.3587095]
[1733165243254,0.0027298,95859.0,95858.0,0.22986429]
[1733165243522,0.0017298,95859.0,95858.0,0.22986429]
[1733165243746,0.0027298,95859.0,95858.0,0.22986429]
[1733165244183,0.0037298,95859.0,95858.0,0.22986429]
[1733165244628,0.0027298,95859.0,95858.0,0.22986429]
[1733165244876,0.0027298,95859.0,95858.0,0.3557095]
[1733165245087,0.0017298,95859.0,95858.0,0.3557095]
[1733165245817,0.0027298,95859.0,95858.0,0.54353542]
[1733165246036,0.0037298,95859.0,95858.0,0.54853542]
[1733165246283,0.0027298,95859.0,95858.0,0.54853542]
[1733165246501,0.0017298,95859.0,95858.0,0.54353542]
[1733165246737,0.0027298,95859.0,95858.0,0.54353542]
[1733165246953,0.0027298,95859.0,95858.0,0.55053542]
[1733165247447,0.0017298,95859.0,95858.0,0.54353542]
[1733165247692,0.0027298,95859.0,95858.0,0.55053542]
[1733165248431,0.0037298,95859.0,95858.0,0.55053542]
[1733165249530,0.0037298,95859.0,95858.0,0.3627095]
[1733165250538,0.0037298,95859.0,95858.0,0.3158095]
[1733165250745,0.0037298,95859.0,95858.0,0.10826429]
[1733165251655,0.0037298,95859.0,95858.0,0.2111095]
[1733165251903,0.0037298,95859.0,95858.0,0.31910396]
[1733165252407,8e-07,95859.0,95858.0,0.40180396]
[1733165252618,8e-07,95859.0,95858.0,0.45120396]
[1733165253064,8e-07,95859.0,95858.0,0.85509836]
[1733165253281,8e-07,95859.0,95858.0,0.3662095]
[1733165253716,8e-07,95859.0,95858.0,0.45120396]
[1733165253949,8e-07,95859.0,95858.0,0.46904096]
[1733165254403,8e-07,95859.0,95858.0,0.3662095]
[1733165254863,8e-07,95859.0,95858.0,0.2341095]
[1733165259312,8e-07,95859.0,95858.0,0.10826429]
[1733165259786,0.44716695,95859.0,95858.0,0.10826429]
[1733165259973,0.44889675,95859.0,95858.0,0.10826429]
[1733165260230,0.52256942,95859.0,95858.0,0.10826429]
[1733165260629,0.62541463,95859.0,95858.0,0.10826429]
[1733165260850,0.62541383,95859.0,95858.0,0.10826429]
[1733165261069,0.62541383,95859.0,95858.0,0.10126429]
[1733165261284,0.67061383,95859.0,95858.0,0.10126429]
[1733165261540,0.67061383,95859.0,95858.0,0.10526429]
[1733165261541,0.95020612,95859.0,95858.0,0.10526429]
[1733165261739,0.95520612,95859.0,95858.0,0.10526429]
[1733165261945,0.95020612,95859.0,95858.0,0.10126429]
[1733165262173,0.95220612,95859.0,95858.0,0.10126429]
[1733165262518,0.95720612,95859.0,95858.0,0.10126429]
[1733165262614,0.95220612,95859.0,95858.0,0.10126429]
[1733165262851,0.95020612,95859.0,95858.0,0.10126429]
[1733165263581,0.75320612,95859.0,95858.0,0.10126429]
[1733165263801,0.67953345,95859.0,95858.0,0.10126429]
[1733165264029,0.68424116,95859.0,95858.0,0.10126429]
[1733165264241,1.08753275,95859.0,95858.0,0.10126429]
[1733165264470,1.08753275,95859.0,95830.0,0.0008641]
[1733165264471,0.77446615,95843.0,95830.0,0.0008641]
[1733165264716,1.18343441,95843.0,95830.0,0.0008641]
[1733165265178,0.70586415,95832.0,95830.0,0.0008641]
[1733165265397,1.28660936,95832.0,95830.0,0.0008641]
[1733165265617,0.98778415,95823.0,95817.0,0.0008642]
[1733165265849,0.98778415,95823.0,95804.0,0.0008645]
[1733165265850,0.49716615,95816.0,95804.0,0.0008645]
[1733165266068,1.11320424,95816.0,95804.0,0.0008645]
[1733165266522,1.12962054,95816.0,95815.0,0.00144878]
[1733165266737,1.11320424,95816.0,95815.0,0.00144878]
[1733165267715,1.12220424,95816.0,95815.0,0.00144878]
[1733165268180,0.84420207,95816.0,95815.0,0.00144878]
[1733165268655,0.84820207,95816.0,95815.0,0.00144878]
[1733165270165,1.04820207,95816.0,95815.0,0.00144878]
[1733165271313,1.04491136,95816.0,95815.0,0.00144878]
[1733165272970,0.84491136,95816.0,95815.0,0.00144878]
[1733165273197,1.15101597,95816.0,95815.0,0.00144878]
[1733165273432,1.15101457,95816.0,95815.0,0.00144878]
[1733165273668,1.14774282,95816.0,95815.0,0.00144878]
[1733165273895,1.15101452,95816.0,95815.0,0.00144878]
[1733165274134,1.15101452,95816.0,95804.0,0.0008645]
[1733165274135,1.10172315,95805.0,95804.0,0.0008645]
[1733165274387,1.20784006,95805.0,95804.0,0.00103957]
[1733165274620,1.28814006,95805.0,95804.0,0.00103957]
[1733165275632,1.31055636,95805.0,95804.0,0.00103957]
[1733165275869,1.41338782,95805.0,95804.0,0.00103957]
[1733165276083,1.40738782,95805.0,95804.0,0.00103957]
[1733165276521,1.41538782,95805.0,95804.0,0.00103957]
[1733165276723,1.41956982,95805.0,95804.0,0.00103957]
[1733165277378,1.44216649,95805.0,95804.0,0.00103957]
[1733165277829,1.42575019,95805.0,95804.0,0.00103957]
[1733165278530,1.41215352,95805.0,95804.0,0.00103957]
[1733165278994,0.90932206,95805.0,95804.0,0.00103957]
[1733165279262,0.82576836,95805.0,95804.0,0.00103957]
[1733165279493,0.62576836,95805.0,95804.0,0.00103957]
[1733165279732,0.13200554,95805.0,95804.0,0.00103957]
[1733165279952,0.31647577,95805.0,95804.0,0.00103957]
[1733165280169,0.12300554,95805.0,95804.0,0.00103957]
[1733165280392,0.37352582,95805.0,95804.0,0.00103957]
[1733165280611,0.30516615,95805.0,95804.0,0.00103957]
[1733165280834,0.11500554,95805.0,95804.0,0.00103957]
[1733165281057,0.27531508,95805.0,95804.0,0.00103957]
[1733165281273,0.27300554,95805.0,95804.0,0.00103957]
[1733165281488,0.27400554,95805.0,95804.0,0.00103957]
[1733165281769,0.29716615,95805.0,95804.0,0.00103957]
[1733165282019,0.002,95805.0,95804.0,0.00103957]
[1733165282266,0.006,95805.0,95804.0,0.00103957]
[1733165282481,0.004,95805.0,95804.0,0.02403957]
[1733165282709,0.006,95805.0,95804.0,0.02403957]
[1733165283392,0.30316615,95805.0,95804.0,0.00103957]
[1733165283632,0.35435847,95805.0,95804.0,0.00103957]
[1733165283867,0.29916615,95805.0,95804.0,0.00103957]
[1733165284103,0.45316615,95805.0,95804.0,0.00103957]
[1733165284364,0.44716615,95805.0,95804.0,0.00403957]
[1733165284599,0.44916615,95805.0,95804.0,0.00403957]
[1733165284829,0.44916615,95805.0,95804.0,0.00103957]
[1733165285052,0.44716615,95805.0,95804.0,0.00103957]
[1733165285498,0.65792315,95805.0,95804.0,0.00103957]
[1733165285775,0.84735968,95805.0,95804.0,0.00103957]
[1733165286953,0.84935968,95805.0,95804.0,0.00103957]
[1733165287386,0.84735968,95805.0,95804.0,0.00103957]
[1733165287620,0.86035968,95805.0,95804.0,0.00103957]
[1733165287836,0.85135968,95805.0,95804.0,0.00103957]
[1733165288051,0.84735968,95805.0,95804.0,0.00103957]
[1733165288311,0.85635968,95805.0,95804.0,0.00103957]
[1733165288532,0.86135968,95805.0,95804.0,0.00103957]
[1733165293902,0.79576836,95805.0,95804.0,0.00103957]
[1733165295932,1.27646836,95805.0,95804.0,0.00103957]
[1733165297532,0.61360775,95805.0,95804.0,0.00103957]
[1733165297779,0.79576836,95805.0,95804.0,0.00103957]
[1733165297993,0.61360775,95805.0,95804.0,0.00103957]
[1733165298215,0.89859982,95805.0,95804.0,0.00103957]
[1733165300312,0.89359982,95805.0,95804.0,0.00103957]
[1733165300545,0.88459982,95805.0,95804.0,0.00103957]
[1733165300791,0.89459982,95805.0,95804.0,0.00103957]
[1733165301216,0.88959982,95805.0,95804.0,0.00103957]
[1733165301232,0.88459982,95805.0,95804.0,0.00103957]
[1733165301450,0.89259982,95805.0,95804.0,0.00103957]
[1733165301908,0.78976836,95805.0,95804.0,0.00103957]
[1733165305616,0.18216061,95788.0,95785.0,0.20376327]
[1733165306081,0.18216061,95788.0,95784.0,0.208803]
[1733165306988,0.29716615,95788.0,95786.0,0.208798]
[1733165307247,0.11500554,95787.0,95786.0,0.208798]
[1733165307509,0.08975871,95792.0,95791.0,0.208787]
[1733165307765,0.07456111,95808.0,95807.0,0.208753]
[1733165308028,0.07456111,95808.0,95806.0,0.05749336]
[1733165308029,0.07456111,95807.0,95806.0,0.05749336]
[1733165308239,0.5308492,95807.0,95806.0,0.05749336]
[1733165308469,0.52853953,95807.0,95806.0,0.05749336]
[1733165309153,0.70153953,95807.0,95806.0,0.05749336]
[1733165310319,0.80437099,95807.0,95806.0,0.05749336]
[1733165310535,0.70153953,95807.0,95806.0,0.05749336]
[1733165310977,0.70453953,95807.0,95806.0,0.05749336]
[1733165311434,0.70853953,95807.0,95806.0,0.05749336]
[1733165311649,0.70753953,95807.0,95806.0,0.05849336]
[1733165312079,0.81937099,95807.0,95806.0,0.05849336]
[1733165312315,0.81363718,95807.0,95806.0,0.05849336]
[1733165312532,0.82263718,95807.0,95806.0,0.05849336]
[1733165312776,0.71980572,95807.0,95806.0,0.05849336]
[1733165313006,0.71980572,95807.0,95806.0,0.05749336]
[1733165313199,0.15,95792.0,95783.0,0.00058492]
[1733165313449,0.023,95790.0,95783.0,0.00058492]
[1733165313679,0.023,95788.0,95783.0,0.00058492]
[1733165313952,0.00230995,95787.0,95783.0,0.00058492]
[1733165314182,0.29238021,95784.0,95783.0,0.00058492]
[1733165314612,0.2956464,95784.0,95783.0,0.00058492]
[1733165315051,0.15326619,95784.0,95783.0,0.00058492]
[1733165315280,0.00326619,95784.0,95783.0,0.00058492]
[1733165316500,0.21694132,95786.0,95784.0,0.208803]
[1733165316737,0.07456111,95791.0,95789.0,0.208792]
[1733165318147,0.07756111,95791.0,95789.0,0.208792]
[1733165318859,0.003,95791.0,95789.0,0.208792]
[1733165319121,0.003,95791.0,95790.0,0.22984521]
[1733165319348,0.003,95791.0,95790.0,0.38738858]
[1733165319811,0.003,95791.0,95790.0,0.49022004]
[1733165320024,0.004,95791.0,95790.0,0.49022004]
[1733165320512,0.14238021,95814.0,95813.0,0.208739]
[1733165320720,0.29238021,95814.0,95813.0,0.208739]
[1733165320935,0.29238021,95814.0,95811.0,0.208743]
[1733165320936,0.15,95813.0,95811.0,0.208743]
[1733165321847,0.15,95813.0,95811.0,0.20891837]
[1733165322997,0.15,95813.0,95812.0,0.0776]
[1733165323450,0.29238021,95814.0,95813.0,0.208739]
[1733165325023,0.29338021,95814.0,95813.0,0.208739]
[1733165326605,0.29438021,95814.0,95813.0,0.208739]
[1733165327494,0.14438021,95814.0,95813.0,0.208739]
[1733165327751,0.152,95814.0,95813.0,0.208739]
[1733165327989,0.002,95814.0,95813.0,0.208739]
[1733165328688,0.0028653,95814.0,95813.0,0.208739]
[1733165328935,0.0018653,95814.0,95812.0,0.0776]
[1733165329164,0.07456111,95812.0,95811.0,0.00017537]
[1733165329675,0.0018653,95814.0,95803.0,0.0792]
[1733165329676,0.07456111,95807.0,95803.0,0.287959]
[1733165329895,0.07456111,95807.0,95802.0,0.208763]
[1733165330134,0.07456111,95807.0,95806.0,0.00190597]
[1733165330846,0.21694132,95807.0,95806.0,0.00190597]
[1733165331087,0.49278653,95807.0,95806.0,0.00190597]
[1733165331312,0.49278653,95807.0,95806.0,0.00390597]
[1733165331530,0.49278653,95807.0,95806.0,0.00490597]
[1733165331742,0.49278653,95807.0,95806.0,0.00290597]
[1733165332455,0.49478653,95807.0,95806.0,0.00290597]
[1733165332668,0.49478653,95807.0,95806.0,0.00190597]
[1733165333101,0.49778653,95807.0,95806.0,0.00190597]
[1733165333797,0.49578653,95807.0,95806.0,0.00190597]
[1733165334012,0.50278653,95807.0,95806.0,0.00190597]
[1733165334749,0.37694132,95807.0,95806.0,0.00190597]
[1733165335480,0.42972198,95807.0,95806.0,0.00190597]
[1733165337305,0.28734177,95807.0,95806.0,0.00190597]
[1733165337530,0.42972198,95807.0,95806.0,0.00190597]
[1733165338216,0.37694132,95807.0,95806.0,0.00190597]
[1733165338677,0.22694132,95807.0,95806.0,0.00190597]
[1733165338888,0.37694132,95807.0,95806.0,0.00190597]
[1733165340315,0.50278653,95807.0,95806.0,0.00190597]
[1733165345328,0.94798653,95807.0,95806.0,0.00190597]
[1733165345566,1.12971799,95807.0,95806.0,0.00190597]